bitfinex-derivatives/quotes_ETHF0:USTF0_20250212
["timestamp","ask_amount","ask_price","bid_price","bid_amount"]
[1739397740463,0.5765,2684.6,2684.4,0.00558815]
[1739397740755,3.26113152,2684.7,2684.4,0.00558815]
[1739397740756,1.639,2684.7,2684.6,0.74495]
[1739397741155,0.58208815,2684.9,2684.8,0.74489]
[1739397741453,2.96596815,2684.9,2684.7,0.74492]
[1739397741851,2.96596815,2684.9,2684.6,0.74493]
[1739397742057,2.22108815,2684.9,2684.4,3.21338815]
[1739397742255,0.00558815,2684.9,2684.5,3.26113152]
[1739397742448,0.00558815,2684.9,2684.8,4.00602152]
[1739397742948,0.00558815,2684.9,2684.8,4.57952152]
[1739397743353,0.00558815,2684.9,2684.8,5.18222152]
[1739397745251,0.00558815,2684.9,2684.8,1.92109]
[1739397745448,0.00558815,2684.9,2684.8,0.5735]
[1739397745449,0.75045815,2684.9,2684.8,0.5735]
[1739397745650,4.01158967,2684.9,2684.8,0.5735]
[1739397745956,3.26671967,2684.9,2684.8,0.5735]
[1739397746154,3.26671967,2684.9,2684.8,1.31839]
[1739397746355,0.00558815,2684.9,2684.8,0.5735]
[1739397746652,0.00558815,2684.9,2684.8,1.31839]
[1739397751258,0.00558815,2684.9,2684.8,0.5735]
[1739397751459,0.75045815,2684.9,2684.8,0.5735]
[1739397751664,0.00558815,2684.9,2684.8,1.31839]
[1739397751963,0.58718815,2684.9,2684.8,1.31839]
[1739397753751,0.58718815,2684.9,2684.8,0.5735]
[1739397753955,1.33205815,2684.9,2684.8,0.5735]
[1739397754352,0.58718815,2684.9,2684.8,1.31839]
[1739397755058,0.00558815,2684.9,2684.8,1.31839]
[1739397758262,0.00558815,2684.9,2684.8,4.57952152]
[1739397758461,1.1625,2685.6,2685.3,0.74474]
[1739397758462,0.74471,2685.5,2685.3,0.74474]
[1739397758651,0.5953,2685.6,2685.2,3.95257]
[1739397758652,0.74474,2685.4,2685.2,3.95257]
[1739397759053,0.74474,2685.4,2685.2,3.95258]
[1739397759459,0.74475,2685.3,2685.2,3.2078]
[1739397759664,0.74475,2685.3,2684.9,0.74484]
[1739397759665,0.5979,2685.3,2684.9,3.2078]
[1739397759859,1.34267,2685.3,2685.0,0.74484]
[1739397760060,0.7448,2685.2,2685.0,0.74484]
[1739397760255,0.7448,2685.2,2684.9,3.2078]
[1739397760256,3.26113152,2685.2,2684.9,3.2078]
[1739397760558,0.74484,2685.0,2684.9,3.2078]
[1739397761060,1.33624,2685.0,2684.9,3.2078]
[1739397762157,0.5914,2685.0,2684.9,3.95267]
[1739397762355,1.32891,2685.1,2685.0,0.74484]
[1739397762558,1.32891,2685.1,2684.9,3.2078]
[1739397762964,1.639,2685.2,2685.1,0.74481]
[1739397763264,1.639,2685.2,2684.9,5.06996]
[1739397763265,1.639,2685.2,2685.0,1.34181]
[1739397763465,0.5979,2685.3,2685.0,1.34181]
[1739397763660,0.5918,2685.1,2685.0,1.34181]
[1739397764465,2.2369,2685.3,2685.2,0.74478]
[1739397764869,0.5979,2685.3,2685.2,0.74478]
[1739397765468,0.5979,2685.3,2685.0,0.597]
[1739397765769,1.34266,2685.3,2685.1,0.74479]
[1739397766268,0.5979,2685.3,2685.0,0.597]
[1739397766469,0.5979,2685.3,2685.2,0.74478]
[1739397766670,1.34265,2685.3,2685.2,0.74478]
[1739397766967,0.74478,2685.2,2685.1,0.74479]
[1739397767559,1.34267,2685.3,2685.1,0.74481]
[1739397767961,1.34268,2685.3,2685.2,0.74478]
[1739397768162,1.34268,2685.3,2685.1,0.74479]
[1739397768763,0.5979,2685.3,2685.0,0.597]
[1739397768964,0.74484,2685.0,2684.9,3.2078]
[1739397769369,2.38384,2685.0,2684.9,3.2078]
[1739397770569,1.639,2685.0,2684.4,6.23438815]
[1739397770771,0.74491,2684.8,2684.7,0.7449]
[1739397771178,1.34911,2684.8,2684.7,0.7449]
[1739397772072,0.6042,2684.8,2684.7,0.7449]
[1739397774471,0.6042,2684.8,2684.4,3.21338815]
[1739397774873,0.74492,2684.7,2684.6,0.74493]
[1739397775271,0.6042,2684.8,2684.6,0.74493]
[1739397775470,0.74492,2684.7,2684.6,0.74493]
[1739397775670,0.74492,2684.7,2684.5,0.74495]
[1739397775874,0.6042,2684.8,2684.5,0.74495]
[1739397776072,0.74492,2684.7,2684.5,0.74495]
[1739397776277,0.74494,2684.7,2684.5,0.74498]
[1739397776477,0.74494,2684.7,2684.5,0.74496]
[1739397776973,0.74494,2684.7,2684.6,0.74495]
[1739397777175,0.74494,2684.7,2684.4,3.21338815]
[1739397777372,0.6042,2684.8,2684.4,3.21338815]
[1739397777572,0.74498,2684.5,2684.4,0.00558815]
[1739397779187,0.74498,2684.5,2684.4,0.75058815]
[1739397779482,3.2078,2684.7,2684.4,0.75058815]
[1739397779677,3.2078,2684.7,2684.4,0.00558815]
[1739397779883,0.74496,2684.6,2684.4,0.75056815]
[1739397780086,0.74496,2684.6,2684.5,0.74498]
[1739397780489,0.74498,2684.5,2684.4,0.00558815]
[1739397780680,1.30498,2684.5,2684.4,0.00558815]
[1739397780884,0.56,2684.5,2683.9,0.6026]
[1739397781077,6.46893152,2684.3,2683.8,0.74516]
[1739397781276,0.74516,2683.9,2683.7,0.6026]
[1739397781478,0.74517,2683.8,2683.7,0.6026]
[1739397781686,0.7452,2683.8,2683.6,3.95302]
[1739397781881,1.1189,2683.7,2683.6,0.74522]
[1739397782083,1.1189,2683.7,2683.5,0.29533115]
[1739397782277,1.1189,2683.7,2683.6,0.74523]
[1739397783384,1.1189,2683.7,2683.4,0.00558815]
[1739397783589,0.74525,2683.5,2683.4,0.00558815]
[1739397784294,0.74524,2683.6,2683.4,0.00558815]
[1739397784484,4.38003152,2683.7,2683.6,0.74523]
[1739397784686,0.00558815,2684.0,2683.6,3.2078]
[1739397784886,0.00558815,2684.0,2683.9,0.74514]
[1739397785184,0.00558815,2684.0,2683.6,3.2078]
[1739397785587,0.74522,2683.7,2683.4,0.00558815]
[1739397785784,1.1446,2683.6,2683.4,0.75085815]
[1739397786087,1.1446,2683.6,2683.5,0.74525]
[1739397786289,1.1446,2683.6,2683.4,0.60648815]
[1739397786679,1.1446,2683.6,2683.4,1.35174815]
[1739397787087,1.1446,2683.6,2683.4,0.60648815]
[1739397787286,0.569,2683.6,2683.5,0.74525]
[1739397787992,0.569,2683.6,2683.4,0.00558815]
[1739397788193,0.5756,2683.5,2683.4,0.00558815]
[1739397789487,1.32085,2683.5,2683.4,0.00558815]
[1739397789685,0.5756,2683.5,2683.4,0.00558815]
[1739397790183,0.5756,2683.5,2683.4,1.34516815]
[1739397790382,0.5756,2683.5,2683.4,0.59988815]
[1739397790789,1.32085,2683.5,2683.4,0.59988815]
[1739397791292,0.5756,2683.5,2683.4,0.59988815]
[1739397791590,1.32085,2683.5,2683.4,0.59988815]
[1739397791796,1.32085,2683.5,2683.4,0.00558815]
[1739397794093,1.32085,2683.5,2682.7,0.5919]
[1739397794094,5.2096,2683.5,2682.7,3.2078]
[1739397794298,0.74544,2682.9,2682.7,3.7957]
[1739397794796,0.74544,2682.9,2682.7,4.54116]
[1739397794998,0.7454,2683.0,2682.8,0.74543]
[1739397795694,0.74541,2683.0,2682.8,0.74545]
[1739397795891,0.74541,2683.0,2682.7,3.2078]
[1739397795892,0.74545,2682.8,2682.7,3.2078]
[1739397796089,0.7455,2682.6,2682.5,0.00558815]
[1739397796694,3.26113152,2682.3,2681.9,3.8098]
[1739397796893,3.26113152,2682.3,2681.6,1.2021]
[1739397796894,4.90013152,2682.3,2681.6,4.4099]
[1739397797091,4.00681152,2682.0,2681.6,3.95358]
[1739397797302,0.6055,2681.9,2681.7,0.74574]
[1739397797491,0.6055,2681.9,2681.6,3.95356]
[1739397797697,0.6055,2681.9,2681.6,3.2078]
[1739397797896,0.6055,2681.9,2681.7,0.74574]
[1739397798200,0.6055,2681.9,2681.6,3.2078]
[1739397798401,0.6055,2681.9,2681.8,0.74573]
[1739397798801,0.6055,2681.9,2681.7,1.34224]
[1739397799309,0.5972,2681.8,2681.3,3.2078]
[1739397799599,3.26113152,2681.7,2681.3,3.2078]
[1739397800602,3.26113152,2681.7,2681.3,3.95365]
[1739397801004,4.00690152,2681.7,2681.3,3.2078]
[1739397801195,0.7458,2681.6,2681.3,3.2078]
[1739397801400,0.74584,2681.4,2681.3,3.2078]
[1739397801613,2.38484,2681.4,2681.3,3.2078]
[1739397801996,1.639,2681.4,2681.3,3.2078]
[1739397802205,2.38484,2681.4,2681.3,3.2078]
[1739397802508,1.639,2681.4,2680.9,3.2078]
[1739397802700,0.5812,2681.3,2680.9,3.2078]
[1739397803015,0.5812,2681.3,2681.0,0.74593]
[1739397803306,0.5812,2681.3,2680.9,3.2078]
[1739397803307,1.32707,2681.3,2680.9,3.95376]
[1739397803496,1.32707,2681.3,2681.0,0.74595]
[1739397803795,0.5812,2681.3,2680.9,3.2078]
[1739397803999,1.3368,2681.2,2680.9,3.2078]
[1739397805199,0.5909,2681.2,2680.9,3.95377]
[1739397805408,0.5812,2681.3,2681.2,0.74589]
[1739397805607,0.5812,2681.3,2681.2,3.2078]
[1739397806307,1.32708,2681.3,2680.9,3.95376]
[1739397806710,0.5812,2681.3,2680.9,3.2078]
[1739397807009,0.5812,2681.3,2681.1,0.74591]
[1739397807708,0.5812,2681.3,2681.2,0.74589]
[1739397807899,1.64,2681.4,2681.3,0.74587]
[1739397808104,1.64,2681.4,2681.2,0.74588]
[1739397809007,2.38585,2681.4,2681.1,0.74591]
[1739397809413,0.74587,2681.3,2680.9,3.2078]
[1739397809607,0.74587,2681.3,2681.0,0.74595]
[1739397810614,1.64,2681.4,2680.9,3.2078]
[1739397810809,2.38585,2681.4,2681.1,0.7459]
[1739397811613,1.64,2681.4,2681.1,0.7459]
[1739397811915,0.7459,2681.2,2681.0,0.74594]
[1739397812111,1.64,2681.4,2680.9,3.2078]
[1739397812416,1.33304,2681.1,2680.9,3.2078]
[1739397812813,0.74595,2681.0,2680.9,3.2078]
[1739397813111,1.32725,2681.0,2680.9,3.2078]
[1739397814111,0.5813,2681.0,2680.9,3.2078]
[1739397814411,1.33304,2681.1,2680.9,3.2078]
[1739397814610,0.5871,2681.1,2680.9,3.2078]
[1739397814816,2.38595,2681.0,2680.9,3.2078]
[1739397815215,1.64,2681.0,2680.9,3.95378]
[1739397815919,1.64,2681.4,2680.9,3.2078]
[1739397816213,1.64,2681.4,2681.3,0.74587]
[1739397816214,2.2077,2681.4,2681.3,0.74587]
[1739397816413,0.5677,2681.4,2681.3,0.74587]
[1739397816603,2.2077,2681.4,2681.3,0.74587]
[1739397817007,0.5677,2681.4,2681.2,3.2078]
[1739397817207,0.5677,2681.4,2681.3,0.74587]
[1739397817413,2.2077,2681.4,2681.3,0.74587]
[1739397818514,0.5677,2681.4,2681.3,0.74587]
[1739397822213,2.38578,2681.6,2681.4,0.74582]
[1739397822814,0.74578,2681.6,2681.4,0.74582]
[1739397823012,1.64,2681.6,2681.4,0.74582]
[1739397823218,1.64,2681.6,2681.2,3.2078]
[1739397823520,1.64,2681.6,2681.5,0.74581]
[1739397828917,0.5725,2681.7,2681.6,0.74578]
[1739397829222,2.2125,2681.7,2681.6,0.74578]
[1739397829416,0.5725,2681.7,2681.6,0.74578]
[1739397831121,0.5725,2681.7,2681.2,5.07253]
[1739397831321,0.74582,2681.5,2681.3,0.74586]
[1739397831521,1.31827,2681.7,2681.2,3.2078]
[1739397831721,0.5725,2681.7,2681.6,0.74578]
[1739397833513,0.74578,2681.6,2681.4,0.74582]
[1739397833713,0.74582,2681.5,2681.3,0.74586]
[1739397834125,0.5725,2681.7,2681.2,3.2078]
[1739397834321,0.74584,2681.4,2681.2,3.95368]
[1739397834714,0.74582,2681.5,2681.3,0.74587]
[1739397835223,0.5875,2681.4,2681.3,0.74587]
[1739397836910,0.5875,2681.4,2681.3,1.32727]
[1739397838529,0.5875,2681.4,2681.3,0.5814]
[1739397839116,0.5875,2681.4,2681.3,1.32727]
[1739397839916,0.5875,2681.4,2681.3,0.5814]
[1739397840117,0.5875,2681.4,2681.2,3.2078]
[1739397840324,0.74587,2681.3,2681.2,3.2078]
[1739397841727,0.5875,2681.4,2681.2,3.2078]
[1739397841919,0.74587,2681.3,2681.2,3.95369]
[1739397843024,1.33335,2681.4,2681.2,3.95369]
[1739397843227,0.5875,2681.4,2681.2,3.2078]
[1739397843428,0.5875,2681.4,2681.3,0.74587]
[1739397843728,1.33334,2681.4,2681.3,0.74587]
[1739397844226,1.33334,2681.4,2681.2,3.2078]
[1739397844528,0.5875,2681.4,2681.2,3.95367]
[1739397844829,0.74595,2681.0,2680.9,3.2078]
[1739397845126,1.64,2681.0,2680.6,3.2078]
[1739397845427,0.74603,2680.8,2680.6,3.2078]
[1739397845621,5.14483152,2680.9,2680.6,3.95385]
[1739397845823,4.39883152,2680.9,2680.6,3.2078]
[1739397846024,0.74601,2680.8,2680.6,3.2078]
[1739397846219,4.39883152,2680.9,2680.6,3.2078]
[1739397846421,4.39883152,2680.9,2680.0,0.29569261]
[1739397846422,0.74614,2680.3,2680.2,3.2078]
[1739397846823,0.74614,2680.3,2679.9,3.2078]
[1739397847129,2.41628,2680.2,2679.9,3.2078]
[1739397847433,3.26113152,2680.1,2679.9,3.95403]
[1739397847725,3.26113152,2680.1,2679.9,3.2078]
[1739397847929,3.26113152,2680.1,2679.9,3.95405]
[1739397848220,3.26113152,2680.1,2679.9,3.2078]
[1739397848423,0.74627,2679.9,2679.6,3.2078]
[1739397848618,1.64,2680.0,2679.7,0.74631]
[1739397848819,1.64,2680.0,2679.6,3.2078]
[1739397849014,1.6701,2680.2,2679.9,3.2078]
[1739397849218,6.46893152,2680.7,2679.9,3.2078]
[1739397849420,4.90113152,2680.7,2680.4,0.74612]
[1739397849830,5.64718152,2680.7,2680.3,0.584]
[1739397850033,0.74606,2680.6,2680.2,3.2078]
[1739397850235,0.75168815,2680.5,2680.2,3.2078]
[1739397850732,0.00558815,2680.5,2680.2,3.2078]
[1739397850919,3.26113152,2680.4,2679.8,1.1832]
[1739397851234,0.74623,2680.0,2679.8,1.1832]
[1739397851431,3.2078,2680.2,2679.8,1.1832]
[1739397851432,0.74622,2680.1,2679.8,1.1832]
[1739397851628,0.7462,2680.1,2679.8,1.1832]
[1739397851830,3.2078,2680.2,2679.8,1.1832]
[1739397852032,0.74623,2680.0,2679.8,1.1832]
[1739397852526,3.2078,2680.2,2679.8,1.1832]
[1739397852733,2.98995,2680.3,2679.8,4.391]
[1739397853033,2.98995,2680.3,2679.9,0.74623]
[1739397853331,2.98995,2680.3,2680.0,0.74623]
[1739397853526,2.98995,2680.3,2679.8,4.391]
[1739397853527,2.2438,2680.3,2679.9,0.74624]
[1739397853723,2.98996,2680.3,2679.9,0.74624]
[1739397854324,2.2438,2680.3,2679.8,4.391]
[1739397854624,2.2438,2680.3,2680.1,0.7462]
[1739397854823,2.98996,2680.3,2680.0,0.74622]
[1739397855031,2.2438,2680.3,2680.0,0.74622]
[1739397855237,2.98995,2680.3,2680.0,0.74622]
[1739397855429,2.2438,2680.3,2680.1,0.7462]
[1739397855827,2.2438,2680.3,2679.8,4.391]
[1739397856022,1.64558815,2680.5,2680.3,0.74613]
[1739397856531,1.64558815,2680.5,2680.3,0.74614]
[1739397857234,0.00558815,2680.5,2680.3,0.74614]
[1739397857434,0.00558815,2680.5,2680.3,1.29914]
[1739397857632,0.00558815,2680.5,2680.3,0.553]
[1739397857829,0.00558815,2680.5,2680.4,0.74612]
[1739397858628,0.00558815,2680.5,2680.4,3.95392]
[1739397860128,0.00558815,2680.5,2680.4,3.2078]
[1739397860333,0.00558815,2680.5,2680.4,3.95392]
[1739397864734,0.5528,2681.2,2680.4,3.95392]
[1739397864735,2.1928,2681.2,2680.4,3.2078]
[1739397864939,2.1928,2681.2,2681.1,0.74592]
[1739397864940,2.7926,2681.2,2681.1,0.74592]
[1739397865148,1.1526,2681.2,2681.1,0.74592]
[1739397866037,0.00558815,2681.4,2681.3,0.74587]
[1739397866530,0.00558815,2681.4,2680.9,1.13938815]
[1739397866731,0.74587,2681.3,2681.1,0.74591]
[1739397866927,0.00558815,2681.4,2681.1,0.74591]
[1739397867126,0.75144815,2681.4,2681.1,0.74591]
[1739397867331,0.75144815,2681.4,2681.1,0.00365427]
[1739397867533,0.74587,2681.3,2681.1,0.74955427]
[1739397867840,0.75144815,2681.4,2681.1,0.74955427]
[1739397868637,0.75144815,2681.4,2681.2,0.74589]
[1739397868841,0.75144815,2681.4,2681.1,0.00365427]
[1739397868842,0.00558815,2681.4,2681.1,0.00365427]
[1739397869032,0.75142815,2681.4,2681.2,0.74589]
[1739397869233,0.00558815,2681.4,2681.3,0.74587]
[1739397875950,0.5726,2682.0,2681.9,0.7457]
[1739397878142,1.64558815,2682.2,2681.9,0.7457]
[1739397878143,0.00558815,2682.2,2681.9,1.1548]
[1739397878338,0.00558815,2682.2,2682.1,3.95344]
[1739397878749,0.00558815,2682.2,2682.1,7.21457152]
[1739397882249,0.00558815,2682.2,2682.1,3.2078]
[1739397882847,0.00558815,2682.2,2682.0,3.95346]
[1739397883042,0.00558815,2682.2,2682.1,0.74564]
[1739397884354,0.00558815,2682.2,2682.1,1.29634]
[1739397884758,0.00558815,2682.2,2682.1,1.84754]
[1739397887058,0.00558815,2682.2,2682.1,5.05534]
[1739397887869,0.00558815,2682.2,2682.1,4.50414]
[1739397893966,0.56048815,2682.2,2682.1,4.50414]
[1739397896376,0.00558815,2682.2,2682.1,4.50414]
[1739397900476,0.75120815,2682.2,2682.1,3.2078]
[1739397900777,0.74578,2681.7,2681.4,3.95363]
[1739397900983,1.86411,2682.1,2681.4,3.95363]
[1739397900984,1.1419,2681.6,2681.4,3.95363]
[1739397901174,1.6921,2681.6,2681.4,3.95363]
[1739397901376,1.6921,2681.6,2681.1,3.21145427]
[1739397901680,0.74586,2681.4,2681.1,3.21145427]
[1739397901877,3.2078,2681.5,2681.1,0.00365427]
[1739397902081,0.74589,2681.2,2681.1,0.00365427]
[1739397902374,0.74588,2681.3,2681.1,0.00365427]
[1739397902569,0.74584,2681.4,2681.1,0.00365427]
[1739397902770,0.74588,2681.3,2681.1,0.00365427]
[1739397903374,3.3311,2681.6,2681.3,0.74584]
[1739397903779,0.74582,2681.5,2681.2,0.74588]
[1739397904178,3.3311,2681.6,2681.1,3.21145427]
[1739397904376,0.74585,2681.4,2681.1,3.95737427]
[1739397904581,0.74588,2681.3,2681.1,0.00365427]
[1739397905471,6.5389,2681.6,2681.1,0.00365427]
[1739397905671,7.28469,2681.6,2681.3,0.74584]
[1739397905881,6.5389,2681.6,2681.1,3.21145427]
[1739397906381,0.74589,2681.3,2681.1,3.21145427]
[1739397906680,0.74589,2681.3,2681.1,3.95737427]
[1739397906981,0.74589,2681.2,2681.1,3.21145427]
[1739397907178,0.74589,2681.2,2681.1,0.00365427]
[1739397908678,0.74588,2681.3,2681.1,0.74957427]
[1739397908876,6.5389,2681.6,2681.1,0.74957427]
[1739397909078,0.74588,2681.3,2681.2,0.74589]
[1739397909269,0.74589,2681.2,2681.1,0.74956427]
[1739397909475,0.74589,2681.2,2681.1,0.00365427]
[1739397910175,2.38489,2681.2,2681.1,0.00365427]
[1739397913088,2.38489,2681.2,2681.1,0.74957427]
[1739397914278,3.2078,2681.4,2681.1,0.00365427]
[1739397914586,2.38489,2681.3,2681.2,0.74589]
[1739397914775,1.639,2681.3,2681.2,0.74589]
[1739397914976,2.38487,2681.3,2681.2,0.74589]
[1739397917285,0.74589,2681.2,2681.1,0.00365427]
[1739397918575,0.74589,2681.2,2680.9,0.75155815]
[1739397918576,0.74595,2681.0,2680.9,0.00558815]
[1739397919680,0.74595,2681.0,2680.9,0.75156815]
[1739397921184,1.89164,2681.1,2681.0,0.74595]
[1739397921881,1.89162,2681.1,2681.0,0.74595]
[1739397922181,1.1457,2681.1,2681.0,0.74595]
[1739397922384,0.5609,2681.1,2681.0,0.74595]
[1739397922685,0.5609,2681.1,2681.0,1.33775]
[1739397923080,1.30682,2681.1,2681.0,0.5918]
[1739397924081,0.74595,2681.0,2680.9,3.21338815]
[1739397924288,2.38495,2681.0,2680.9,0.00558815]
[1739397924587,11.43033339,2681.0,2679.9,3.2078]
[1739397924785,0.74621,2680.1,2679.9,3.2078]
[1739397925084,1.639,2680.2,2679.9,3.2078]
[1739397925277,0.74623,2680.0,2679.8,0.74627]
[1739397925478,0.74624,2680.0,2679.8,0.74626]
[1739397925678,0.74624,2680.0,2679.8,0.74627]
[1739397926687,0.00558815,2680.2,2680.1,0.7462]
[1739397929592,0.00558815,2680.2,2680.1,3.954]
[1739397934685,1.639,2680.9,2680.8,0.746]
[1739397934991,2.2119,2681.0,2680.6,3.2078]
[1739397935185,2.95785,2681.0,2680.8,0.74599]
[1739397935591,2.95785,2681.0,2680.9,0.74598]
[1739397935592,2.2119,2681.0,2680.9,0.74598]
[1739397935784,2.2119,2681.0,2680.8,0.746]
[1739397936386,2.95787,2681.0,2680.7,0.74602]
[1739397936794,2.95787,2681.0,2680.6,3.7625]
[1739397936994,2.95787,2681.0,2680.7,0.74603]
[1739397937195,2.95787,2681.0,2680.8,0.746]
[1739397939595,2.2119,2681.0,2680.6,3.7625]
[1739397939800,2.2119,2681.0,2680.9,0.74598]
[1739397942700,0.5729,2681.0,2680.9,0.74598]
[1739397943394,2.234,2681.1,2681.0,0.74595]
[1739397943795,0.595,2681.1,2681.0,0.74595]
[1739397943994,0.00558815,2681.2,2680.7,5.64368]
[1739397944195,0.00558815,2681.2,2681.1,0.74592]
[1739397945098,0.00558815,2681.2,2681.1,3.95372]
[1739397945892,0.00558815,2681.2,2681.1,3.2078]
[1739397946302,0.75147815,2681.2,2681.1,3.2078]
[1739397946704,0.00558815,2681.2,2681.1,3.95372]
[1739397947202,0.00558815,2681.2,2681.1,3.2078]
[1739397947403,0.75147815,2681.2,2681.1,3.2078]
[1739397947603,0.75147815,2681.2,2681.1,3.95372]
[1739397947801,0.75147815,2681.2,2681.1,3.2078]
[1739397948206,0.00558815,2681.2,2681.1,3.95372]
[1739397948405,0.75147815,2681.2,2681.1,3.95372]
[1739397949001,0.75147815,2681.2,2681.1,3.2078]
[1739397949201,0.74593,2681.1,2680.9,0.74596]
[1739397949399,0.5621,2681.1,2681.0,0.74593]
[1739397949799,1.30802,2681.1,2681.0,0.74593]
[1739397950207,0.5621,2681.1,2681.0,0.74593]
[1739397950707,0.5621,2681.1,2680.8,3.7893]
[1739397950904,0.74598,2680.9,2680.8,3.2078]
[1739397951205,2.2011,2681.1,2681.0,0.74595]
[1739397952107,0.5621,2681.1,2681.0,0.74595]
[1739397957611,0.00558815,2681.2,2680.9,1.183]
[1739397957814,0.00558815,2681.2,2681.1,3.95372]
[1739397964814,0.5975,2681.7,2681.6,0.74578]
[1739397965113,1.1448,2682.0,2681.9,0.7457]
[1739397965313,0.5753,2682.0,2681.9,3.9535]
[1739397966016,0.5753,2682.0,2681.9,4.5043]
[1739397968317,0.55918815,2682.2,2682.1,0.74564]
[1739397968914,0.55918815,2682.2,2681.9,4.3568]
[1739397969124,0.55918815,2682.2,2682.0,0.74565]
[1739397969622,0.55918815,2682.2,2681.9,4.3568]
[1739397969823,0.00558815,2682.2,2682.1,0.74564]
[1739397984622,0.00558815,2682.2,2681.9,3.7586]
[1739397984823,0.00558815,2682.2,2682.1,0.74564]
[1739397988327,0.00558815,2682.2,2681.9,3.7913]
[1739397988328,0.00558815,2682.2,2681.9,3.2078]
[1739397988828,3.2078,2682.0,2681.7,0.00558815]
[1739397989031,2.7908,2681.9,2681.0,0.30568332]
[1739397989324,0.7458,2681.6,2681.2,0.74588]
[1739397989528,1.29992,2681.5,2681.1,0.74591]
[1739397989738,0.5595,2681.4,2681.1,0.74591]
[1739397989924,0.5595,2681.4,2681.2,3.95367]
[1739397990127,0.5595,2681.4,2681.2,3.2078]
[1739397990638,0.5595,2681.4,2681.2,3.95368]
[1739397990837,0.5595,2681.4,2681.3,0.74587]
[1739397992037,0.5595,2681.4,2681.2,3.95368]
[1739397992232,0.5686,2681.3,2681.2,3.95368]
[1739397993932,0.5686,2681.3,2681.2,3.2078]
[1739397994635,0.5686,2681.3,2681.2,3.95369]
[1739397995439,0.5686,2681.3,2681.2,3.2078]
[1739397996140,0.5686,2681.3,2681.2,3.95369]
[1739398000437,0.5686,2681.3,2681.2,3.2078]
[1739398000634,0.74592,2681.1,2681.0,0.00558815]
[1739398001543,2.38392,2681.1,2681.0,0.00558815]
[1739398001735,3.50281,2681.1,2680.5,3.2078]
[1739398001936,0.74599,2680.9,2680.7,0.74603]
[1739398002136,0.5641,2680.8,2680.7,0.74603]
[1739398002646,0.5831,2681.0,2680.9,0.74598]
[1739398002840,1.89315,2681.0,2680.8,0.74599]
[1739398003744,1.1472,2681.0,2680.5,3.21338815]
[1739398004043,1.1472,2681.0,2680.9,0.74598]
[1739398004245,0.5831,2681.0,2680.9,0.74598]
[1739398006335,0.5831,2681.0,2680.8,3.95379]
[1739398006542,1.32906,2681.0,2680.8,3.2078]
[1739398006741,0.5831,2681.0,2680.8,3.95379]
[1739398007941,1.32905,2681.0,2680.8,3.95379]
[1739398008546,1.32905,2681.0,2680.8,3.2078]
[1739398008748,1.32905,2681.0,2680.8,3.9538]
[1739398009251,0.5831,2681.0,2680.9,0.74598]
[1739398012353,0.5831,2681.0,2680.8,1.1852]
[1739398012549,0.5831,2681.0,2680.9,0.74598]
[1739398015448,0.5933,2681.1,2680.8,1.1852]
[1739398015760,0.572,2681.4,2681.2,0.74587]
[1739398015953,0.572,2681.4,2681.3,0.5798]
[1739398016251,0.572,2681.4,2681.3,1.32567]
[1739398018654,3.561,2681.6,2681.5,0.74581]
[1739398018655,0.5731,2681.6,2681.5,0.74581]
[1739398018856,1.638,2681.8,2681.6,0.74577]
[1739398019155,1.638,2681.8,2681.7,0.5545]
[1739398019156,2.38373,2681.8,2681.7,0.5545]
[1739398019356,1.638,2681.8,2681.7,0.5545]
[1739398019556,2.38373,2681.8,2681.7,0.5545]
[1739398019953,1.638,2681.8,2681.7,0.5545]
[1739398020445,1.638,2681.8,2681.7,1.30025]
[1739398021351,2.38373,2681.8,2681.7,0.5545]
[1739398021554,0.74573,2681.8,2681.7,0.5545]
[1739398022158,0.5924,2681.9,2681.8,0.74573]
[1739398023348,0.5924,2681.9,2681.7,0.5545]
[1739398023549,0.5924,2681.9,2681.8,0.74573]
[1739398023751,1.3381,2681.9,2681.7,1.30023]
[1739398024362,0.5924,2681.9,2681.8,0.74573]
[1739398024664,0.5924,2681.9,2681.7,0.5545]
[1739398024962,0.5924,2681.9,2681.8,0.74573]
[1739398025853,1.3381,2681.9,2681.8,0.74573]
[1739398026255,0.5924,2681.9,2681.8,0.74573]
[1739398026451,3.2078,2682.0,2681.7,0.5545]
[1739398026658,3.95349,2682.0,2681.8,0.74571]
[1739398027065,3.2078,2682.0,2681.7,0.5545]
[1739398027249,3.2078,2682.0,2681.7,1.30024]
[1739398027456,0.7457,2681.9,2681.7,1.30024]
[1739398027656,3.2078,2682.0,2681.7,0.5545]
[1739398027861,0.577,2681.8,2681.7,1.30024]
[1739398028758,1.32273,2681.8,2681.7,1.30024]
[1739398029151,1.32273,2681.8,2681.7,0.5545]
[1739398029353,1.32273,2681.8,2681.7,1.30025]
[1739398029555,0.577,2681.8,2681.7,1.30025]
[1739398031160,0.577,2681.8,2681.7,0.5545]
[1739398031359,1.32273,2681.8,2681.7,0.5545]
[1739398031563,0.577,2681.8,2681.7,1.30025]
[1739398036366,0.577,2681.8,2681.7,4.50805]
[1739398036753,0.60818815,2682.2,2682.1,0.74564]
[1739398036955,0.00558815,2682.2,2682.1,0.74564]
[1739398037172,0.00558815,2682.2,2682.1,1.30364]
[1739398043969,0.00558815,2682.2,2682.1,4.51144]
[1739398059376,0.5922,2682.8,2682.7,0.74548]
[1739398059578,0.5922,2682.8,2682.7,3.95328]
[1739398060079,0.5634,2682.9,2682.8,0.74545]
[1739398066579,0.5634,2682.9,2682.8,3.95325]
[1739398068477,1.30882,2682.9,2682.8,3.2078]
[1739398068982,0.5634,2682.9,2682.8,3.95325]